bitfinex/quotes_SOLUSD_20241005
["timestamp","ask_amount","ask_price","bid_price","bid_amount"]
[1728100280779,15.6175,142.35,142.34,0.12549]
[1728100280966,15.6175,142.35,142.34,7.15089]
[1728100281371,15.6175,142.35,142.34,7.27638]
[1728100281769,6.1802,142.37,142.34,7.15089]
[1728100281956,6.1802,142.37,142.35,1.52752886]
[1728100282357,6.1802,142.37,142.35,1.40203886]
[1728100282660,15.6175,142.38,142.36,0.25098]
[1728100283175,15.6175,142.38,142.36,7.14979]
[1728100283352,15.6175,142.38,142.37,0.12549]
[1728100284757,15.6175,142.38,142.37,7.27488]
[1728100284964,21.8942,142.41,142.37,7.27488]
[1728100285655,21.8942,142.41,142.37,0.25098]
[1728100285964,21.8942,142.41,142.4,7.14789]
[1728100286278,21.8942,142.41,142.39,7.0228]
[1728100288357,21.8942,142.41,142.4,0.12549]
[1728100288582,21.8942,142.41,142.35,17.5621]
[1728100288766,21.8942,142.41,142.32,33.89247559]
[1728100288767,7.0239,142.37,142.32,33.89247559]
[1728100288969,23.776884,142.39,142.33,7.0254]
[1728100288970,7.0235,142.38,142.33,7.0254]
[1728100289282,7.023,142.39,142.34,7.0253]
[1728100290288,1.75601239,142.38,142.34,7.0253]
[1728100290786,7.023,142.39,142.34,7.0253]
[1728100291385,7.023,142.39,142.35,1.65299092]
[1728100291896,7.023,142.39,142.35,8.67789092]
[1728100292967,30.799284,142.4,142.35,8.67789092]
[1728100293160,30.799284,142.4,142.35,7.27588]
[1728100293988,7.0224,142.4,142.35,7.27588]
[1728100295088,21.8942,142.41,142.35,0.25098]
[1728100295293,21.8942,142.41,142.38,7.0229]
[1728100295586,21.8942,142.41,142.39,1.6519215]
[1728100295973,21.8942,142.41,142.39,0.25098]
[1728100298587,21.8942,142.41,142.36,0.25098]
[1728100298588,1.75563377,142.4,142.36,0.25098]
[1728100298792,7.0225,142.4,142.36,0.25098]
[1728100298996,28.9162,142.41,142.36,7.27528]
[1728100304072,28.9162,142.41,142.36,16.57565559]
[1728100306505,23.776884,142.4,142.35,24.5865]
[1728100306797,7.0231,142.39,142.35,17.562]
[1728100306994,1.75604506,142.38,142.35,17.562]
[1728100307585,8.77910352,142.39,142.35,17.562]
[1728100308778,7.0231,142.39,142.35,17.562]
[1728100309878,8.77909027,142.39,142.35,17.562]
[1728100312504,30.799284,142.4,142.35,25.98847455]
[1728100312703,30.799284,142.4,142.35,24.5865]
[1728100320616,7.024,142.37,142.33,7.0257]
[1728100320800,1.75625849,142.36,142.32,17.5652]
[1728100321009,23.776884,142.4,142.32,17.5652]
[1728100321010,1.75626644,142.39,142.32,17.5652]
[1728100321207,15.896,142.36,142.32,24.5916]
[1728100321414,17.65231039,142.36,142.32,24.5916]
[1728100322301,17.65231039,142.36,142.33,0.25098]
[1728100322697,15.896,142.36,142.33,0.25098]
[1728100323518,24.67678654,142.36,142.32,17.5652]
[1728100323693,7.0251,142.35,142.3,16.32727559]
[1728100323895,7.0255,142.34,142.3,16.32727559]
[1728100324095,21.9878,142.36,142.3,16.32727559]
[1728100324313,30.801884,142.35,142.3,17.73061409]
[1728100324505,30.801884,142.35,142.3,10.70371409]
[1728100324712,30.801884,142.35,142.31,7.0268]
[1728100325297,30.801884,142.35,142.3,9.30037559]
[1728100325493,30.801884,142.35,142.3,16.32757559]
[1728100325926,30.801884,142.35,142.31,0.12549]
[1728100327501,29.0123,142.36,142.31,8.68108416]
[1728100327803,29.0123,142.36,142.31,7.27778]
[1728100328608,21.9878,142.36,142.31,17.81758]
[1728100328816,21.9878,142.36,142.33,0.12549]
[1728100329003,21.9878,142.36,142.34,17.5634]
[1728100331014,15.896,142.36,142.35,0.12549]
[1728100331206,15.896,142.39,142.35,0.25098]
[1728100331799,15.896,142.39,142.37,0.12549]
[1728100334932,17.57761762,142.45,142.37,0.25098]
[1728100335119,22.8418,142.45,142.4,7.0224]
[1728100335321,15.8218,142.45,142.41,28.50642311]
[1728100335632,15.8218,142.45,142.43,7.0208]
[1728100336411,15.8218,142.45,142.43,37.0208]
[1728100337432,15.8218,142.45,142.44,0.12549]
[1728100337632,15.8218,142.45,142.44,30.12549]
[1728100338603,6.5247,142.46,142.44,37.14589]
[1728100338833,15.8218,142.48,142.44,37.14589]
[1728100339013,15.8218,142.48,142.45,7.0199]
[1728100339218,15.8218,142.48,142.46,8.66956159]
[1728100339538,6.5247,142.5,142.46,8.66956159]
[1728100340116,6.5247,142.5,142.46,38.66956159]
[1728100340434,6.5247,142.5,142.46,49.19796159]
[1728100340733,15.8218,142.51,142.48,0.25098]
[1728100340929,15.8218,142.51,142.48,7.14399]
[1728100341233,6.5247,142.54,142.5,7.14299]
[1728100342221,6.5247,142.54,142.5,37.14299]
[1728100342812,13.5404,142.54,142.5,30.12549]
[1728100343839,25.53111397,142.53,142.5,30.0]
[1728100344219,25.53111397,142.53,142.46,0.25098]
[1728100344520,25.53111397,142.53,142.48,0.25098]
[1728100345117,7.0169,142.52,142.48,0.25098]
[1728100345641,8.77127496,142.52,142.48,0.25098]
[1728100345845,8.77127496,142.52,142.48,30.25098]
[1728100346234,7.0169,142.52,142.48,30.25098]
[1728100346415,30.792984,142.53,142.48,37.26948]
[1728100347042,7.0161,142.53,142.48,37.26948]
[1728100349447,7.0161,142.53,142.48,7.26948]
[1728100352446,7.0161,142.53,142.5,0.25098]
[1728100353354,7.0161,142.53,142.5,30.25098]
[1728100354140,7.0161,142.53,142.49,0.25098]
[1728100357349,7.0161,142.53,142.49,30.25098]
[1728100361851,13.5404,142.54,142.5,17.5434]
[1728100362363,7.0161,142.53,142.5,17.5434]
[1728100362861,7.0161,142.53,142.49,7.26888]
[1728100367959,8.77079601,142.52,142.5,30.0]
[1728100368163,7.017,142.51,142.5,30.0]
[1728100369063,7.0166,142.52,142.5,30.0]
[1728100374869,6.5247,142.54,142.5,30.0]
[1728100375161,7.0162,142.53,142.5,30.0]
[1728100376972,7.0162,142.53,142.48,7.26918]
[1728100377951,7.0162,142.53,142.5,0.25098]
[1728100380065,7.0162,142.53,142.5,30.25098]
[1728100385366,7.0162,142.53,142.5,0.25098]
[1728100387980,6.5247,142.54,142.5,0.25098]
[1728100388183,13.5402,142.54,142.5,7.26838]
[1728100390060,15.29428668,142.54,142.5,7.26838]
[1728100391373,15.29428668,142.54,142.5,37.26838]
[1728100393886,13.5402,142.54,142.5,7.26838]
[1728100396485,15.29428712,142.54,142.5,7.26838]
[1728100396696,15.29428712,142.54,142.5,0.25098]
[1728100396869,7.0161,142.53,142.5,0.25098]
[1728100397775,7.0161,142.53,142.5,30.25098]
[1728100399791,7.0161,142.53,142.5,0.25098]
[1728100408305,7.0161,142.53,142.5,30.25098]
[1728100412398,7.0161,142.53,142.5,0.25098]
[1728100416382,7.0161,142.53,142.5,30.25098]
[1728100425206,7.0161,142.53,142.5,0.25098]
[1728100425514,7.0161,142.53,142.49,7.0179]
[1728100425515,15.6846,142.52,142.42,17.5528]
[1728100425701,7.019,142.47,142.43,30.0]
[1728100425886,6.03,142.5,142.42,24.89350174]
[1728100425887,8.77454412,142.46,142.42,17.5528]
[1728100426210,8.77454412,142.46,142.41,9.30037559]
[1728100426211,7.02,142.45,142.41,9.30037559]
[1728100426711,7.02,142.45,142.41,16.32227559]
[1728100426884,20.0,142.49,142.41,16.32227559]
[1728100426885,7.0195,142.46,142.41,16.32227559]
[1728100427299,7.0195,142.46,142.39,52.6705]
[1728100427300,8.7751917,142.45,142.4,7.0223]
[1728100428789,8.7751917,142.45,142.41,0.25098]
[1728100429497,7.0201,142.45,142.41,0.25098]
[1728100430121,15.6846,142.46,142.42,7.27238]
[1728100431917,15.6846,142.46,142.43,1.39980978]
[1728100436195,15.6846,142.46,142.42,7.27238]
[1728100437018,22.7041,142.46,142.42,7.27238]
[1728100444002,22.7041,142.46,142.42,0.25098]
[1728100449827,15.6846,142.46,142.42,0.25098]
[1728100449999,1.75505973,142.45,142.41,0.12549]
[1728100450203,7.0203,142.45,142.41,1.6512355]
[1728100453732,22.0394,142.46,142.41,1.6512355]
[1728100454030,29.059,142.46,142.43,0.25098]
[1728100457426,29.059,142.46,142.42,0.25098]
[1728100457836,7.0208,142.44,142.4,0.25098]
[1728100458206,7.0208,142.44,142.4,7.27328]
[1728100461942,7.0208,142.44,142.4,0.25098]
[1728100462150,1.75530067,142.43,142.4,0.25098]
[1728100463124,7.0215,142.42,142.4,0.25098]
[1728100463328,7.0213,142.43,142.38,24.5809]
[1728100464053,45.947384,142.41,142.35,17.5622]
[1728100464222,8.77852119,142.4,142.37,30.0]
[1728100464423,1.75582119,142.4,142.37,30.0]
[1728100464617,7.0231,142.39,142.37,30.0]
[1728100464821,7.0231,142.39,142.35,17.5622]
[1728100465646,7.0231,142.39,142.36,0.25098]
[1728100465845,7.0231,142.39,142.35,17.5622]
[1728100466038,1.75589516,142.38,142.35,17.5622]
[1728100466923,7.0235,142.38,142.33,7.0259]
[1728100467350,7.0235,142.38,142.33,8.42835796]
[1728100468139,7.0235,142.38,142.34,0.12549]
[1728100468344,1.75619543,142.37,142.34,0.12549]
[1728100470252,7.0235,142.38,142.34,0.12549]
[1728100470451,7.0235,142.38,142.34,0.25098]
[1728100476355,20.0,142.36,142.26,1.22344682]
[1728100476545,20.0,142.36,142.28,30.0]
[1728100476546,23.776884,142.33,142.28,30.0]
[1728100476936,1.75691354,142.32,142.28,30.0]
[1728100477441,8.78341354,142.32,142.28,30.0]
[1728100477650,7.0265,142.32,142.27,37.0287]
[1728100477853,7.0265,142.32,142.28,0.25098]
[1728100478137,8.78341346,142.32,142.28,0.25098]
[1728100478337,14.97561346,142.32,142.28,0.25098]
[1728100481738,13.2187,142.32,142.28,0.25098]
[1728100483063,14.97561288,142.32,142.28,0.25098]
[1728100484049,6.1922,142.32,142.27,0.25098]
[1728100484247,6.1922,142.32,142.29,7.0276]
[1728100484456,15.301,142.34,142.3,1.65478261]
[1728100484661,15.301,142.34,142.32,7.0263]
[1728100484843,15.301,142.34,142.31,7.0268]
[1728100485160,15.301,142.34,142.3,19.22268261]
[1728100485341,15.301,142.34,142.3,24.84618]
[1728100487571,17.05752703,142.34,142.3,24.84618]
[1728100487950,15.301,142.34,142.3,24.84618]
[1728100488357,17.05753167,142.34,142.3,24.84618]
[1728100490563,15.301,142.34,142.3,24.84618]
[1728100490874,15.301,142.34,142.3,0.25098]
[1728100492071,15.301,142.34,142.3,7.27828]
[1728100500784,17.05753342,142.34,142.3,7.27828]
[1728100501589,24.08293576,142.34,142.3,7.27828]
[1728100501782,22.3264,142.34,142.3,7.27828]
[1728100510286,6.1922,142.36,142.33,0.25098]
[1728100510588,6.1922,142.36,142.34,7.15069]
[1728100519089,6.1922,142.36,142.34,0.12549]
[1728100521794,1.75625448,142.35,142.3,17.5679]
[1728100522099,7.0258,142.34,142.3,24.5952]
[1728100522994,1.75625448,142.35,142.31,0.25098]
[1728100523170,8.78125448,142.35,142.31,0.25098]
[1728100523569,8.78125448,142.35,142.31,30.25098]
[1728100526589,53.085484,142.32,142.31,30.0]
[1728100526790,73.085484,142.32,142.31,13.3334]
[1728100526985,73.085484,142.32,142.24,17.5754]
[1728100526986,7.0284,142.28,142.24,17.5754]
[1728100527185,1.75735946,142.27,142.26,30.0]
[1728100527387,1.75735946,142.27,142.24,17.5754]
[1728100529386,7.0284,142.28,142.24,17.5754]
[1728100529700,22.2822,142.32,142.27,7.0284]
[1728100529901,22.2822,142.32,142.28,7.0282]
[1728100531501,22.2822,142.32,142.29,7.0278]
[1728100531711,22.2822,142.32,142.3,0.12549]
[1728100537309,22.2822,142.32,142.29,0.25098]
[1728100537606,22.2822,142.32,142.29,0.12549]
[1728100538184,22.2822,142.32,142.27,9.30037559]
[1728100538382,22.2822,142.32,142.28,30.0]
[1728100539300,22.2822,142.32,142.29,7.0274]
[1728100546020,22.2822,142.32,142.3,0.12549]
[1728100546504,22.2822,142.32,142.3,8.55625771]
[1728100546711,22.2822,142.32,142.3,7.15269]
[1728100546900,21.4829,142.36,142.32,7.15169]
[1728100547122,21.4829,142.36,142.33,1.40275838]
[1728100547712,21.4829,142.36,142.32,8.55441902]
[1728100548088,21.4829,142.36,142.33,0.12549]
[1728100553328,7.0253,142.35,142.3,33.89557559]
[1728100553618,7.0253,142.35,142.31,30.0]
[1728100554201,8.78178118,142.35,142.31,30.0]
[1728100554901,7.0253,142.35,142.31,30.0]
[1728100555101,21.4829,142.36,142.31,30.0]
[1728100555102,53.124784,142.32,142.31,30.0]
[1728100555314,30.804084,142.31,142.24,17.5749]
[1728100555614,8.7845548,142.3,142.25,37.0298]
[1728100556690,8.7845548,142.3,142.26,0.25098]
[1728100556894,8.7845548,142.3,142.26,30.25098]
[1728100557094,7.0275,142.3,142.26,30.25098]
[1728100557320,30.803884,142.31,142.26,37.28028]
[1728100557500,7.027,142.31,142.26,37.28028]
[1728100557699,7.027,142.31,142.26,7.28028]
[1728100559327,8.78397575,142.31,142.26,7.28028]
[1728100564226,7.027,142.31,142.26,7.28028]
[1728100564431,22.3215,142.32,142.28,7.15369]
[1728100564726,29.348,142.32,142.28,0.12549]
[1728100566332,1.75689563,142.31,142.28,0.12549]
[1728100566513,8.78389563,142.31,142.28,0.12549]
[1728100571125,7.027,142.31,142.28,0.12549]
[1728100571530,8.78389691,142.31,142.28,0.12549]
[1728100573445,7.027,142.31,142.28,0.12549]
[1728100574742,8.78388286,142.31,142.28,0.12549]
[1728100578843,1.75688286,142.31,142.26,0.12549]
[1728100579033,1.75688286,142.31,142.24,17.5754]
[1728100579034,7.0285,142.28,142.24,17.5754]
[1728100579849,7.0285,142.28,142.24,26.01077495]
[1728100581035,7.0285,142.28,142.24,24.6056]
[1728100588556,23.89553951,142.27,142.23,0.12549]
[1728100588730,1.75748908,142.26,142.23,0.12549]
[1728100589633,22.1382,142.27,142.23,0.12549]
[1728100591074,22.1382,142.27,142.23,7.15629]
[1728100591355,15.1093,142.27,142.24,0.12549]
[1728100591842,15.1093,142.27,142.24,7.15569]
[1728100592036,16.86665169,142.27,142.23,0.25098]
[1728100592561,16.86665169,142.27,142.23,7.28178]
[1728100593555,15.1093,142.27,142.23,7.28178]
[1728100595755,15.1093,142.27,142.23,1.6564138]
[1728100596054,15.1093,142.27,142.24,7.0303]
[1728100596956,15.1093,142.27,142.25,7.28038]
[1728100597262,15.1093,142.27,142.25,0.25098]
[1728100597554,15.1093,142.27,142.25,7.28078]
[1728100602249,15.1093,142.27,142.25,0.25098]
[1728100602450,15.1093,142.27,142.23,17.5763]
[1728100602646,22.1386,142.27,142.24,0.25098]
[1728100602962,15.1093,142.27,142.24,0.25098]
[1728100603462,15.1093,142.27,142.24,7.28118]
[1728100615988,15.1093,142.27,142.24,7.0302]
[1728100623191,15.1093,142.27,142.25,17.5741]
[1728100623508,22.5775,142.3,142.29,7.0279]
[1728100628298,22.5775,142.3,142.29,37.0279]
[1728100628676,22.5775,142.3,142.29,30.0]
[1728100631985,22.5775,142.3,142.27,17.5714]
[1728100632192,24.33458622,142.3,142.28,30.0]
[1728100632996,24.33458622,142.3,142.27,17.5714]
[1728100633195,22.5775,142.3,142.27,17.5714]
[1728100640102,1.75708298,142.29,142.27,17.5714]
[1728100640301,1.75708298,142.29,142.25,7.0297]
[1728100642890,1.75708298,142.29,142.26,7.0292]
[1728100643076,1.75708298,142.29,142.27,30.0]
[1728100643883,23.776884,142.29,142.27,30.0]
[1728100644797,25.53410392,142.29,142.27,30.0]
[1728100645884,23.776884,142.29,142.27,30.0]
[1728100646608,29.6049,142.3,142.27,37.0287]
[1728100646609,22.5775,142.3,142.27,37.0287]
[1728100648407,22.5775,142.3,142.28,7.0283]
[1728100666310,22.5775,142.3,142.23,17.5768]
[1728100666530,22.5775,142.3,142.17,5.68047719]
[1728100666531,25.53421043,142.29,142.17,5.68047719]
[1728100666831,25.53421043,142.29,142.2,9.30037559]
[1728100667115,23.0809,142.25,142.2,17.5805]
[1728100667414,1.75775941,142.24,142.2,24.6124]
[1728100668313,1.75775941,142.24,142.21,0.12549]
[1728100668696,1.75775941,142.24,142.22,30.0]
[1728100669509,23.0809,142.25,142.22,30.0]
[1728100669719,24.83862111,142.25,142.22,30.0]
[1728100678223,1.75771858,142.24,142.22,30.0]
[1728100682436,8.78811858,142.24,142.22,30.0]
[1728100684035,7.0332,142.19,142.14,24.623]
[1728100684220,7.0332,142.19,142.16,30.0]
[1728100684532,23.776884,142.19,142.16,30.0]
[1728100684709,1.7584664,142.18,142.16,30.0]
[1728100686832,23.776884,142.17,142.16,30.0]
[1728100687211,23.776884,142.17,142.13,7.0357]
[1728100687413,23.776884,142.17,142.14,30.0]
[1728100687414,25.53566051,142.17,142.14,30.0]
[1728100688013,21.9671,142.21,142.14,30.0]
[1728100688213,23.776884,142.19,142.14,37.0352]
[1728100689138,1.75859014,142.18,142.14,37.0352]
[1728100689918,23.776884,142.17,142.14,30.0]
[1728100690113,25.53564662,142.17,142.14,30.0]
[1728100691645,23.776884,142.17,142.14,30.0]
[1728100691949,23.72587107,142.16,142.1,0.25098]
[1728100692117,23.72587107,142.16,142.1,30.25098]
[1728100692319,23.776884,142.15,142.11,24.6279]
[1728100692643,1.75902285,142.14,142.11,24.6279]
[1728100693021,1.75902285,142.14,142.11,17.5912]
[1728100694950,1.75902285,142.14,142.12,30.0]
[1728100697135,1.75902285,142.14,142.11,17.5912]
[1728100700432,1.75902285,142.14,142.12,30.0]
[1728100701241,23.776884,142.13,142.12,30.0]
[1728100704858,25.53603087,142.13,142.12,30.0]
[1728100705432,23.776884,142.13,142.12,30.0]
[1728100705659,23.776884,142.13,142.1,7.0371]
[1728100706929,7.0349,142.15,142.1,7.0371]
[1728100707257,23.776884,142.14,142.11,7.0367]
[1728100707757,25.53601603,142.14,142.11,7.0367]
[1728100708750,23.776884,142.14,142.11,7.0367]
[1728100710036,23.776884,142.14,142.12,30.0]
[1728100710742,8.79396095,142.15,142.12,30.0]
[1728100711635,8.79396095,142.15,142.09,7.8781353]
[1728100711636,7.0358,142.13,142.09,7.8781353]
[1728100711831,8.79507216,142.13,142.09,7.8781353]
[1728100712648,23.776884,142.15,142.09,7.8781353]
[1728100712960,23.776884,142.13,142.09,7.8781353]
[1728100714157,25.53613856,142.13,142.09,7.8781353]
[1728100714965,7.0354,142.14,142.1,7.0371]
[1728100715468,1.7591842,142.13,142.1,7.0371]
[1728100716841,23.776884,142.13,142.09,7.8781353]
[1728100717351,30.812684,142.13,142.09,7.8781353]
[1728100719146,1.75933785,142.12,142.09,7.8781353]
[1728100719454,8.79563785,142.12,142.09,0.8404353]
[1728100719844,7.0363,142.12,142.1,30.0]
[1728100720366,7.0368,142.11,142.1,30.0]
[1728100720553,7.0363,142.12,142.1,30.0]
[1728100721250,30.812784,142.13,142.1,30.0]
[1728100721453,30.812784,142.13,142.09,0.8404353]
[1728100722965,30.812784,142.13,142.09,7.8781353]
[1728100724444,30.812784,142.13,142.1,30.0]
[1728100725655,30.812784,142.13,142.09,7.8781353]
[1728100728451,21.9671,142.16,142.1,1.53290959]
[1728100728661,21.9671,142.16,142.12,7.0359]
[1728100729351,29.0016,142.16,142.12,7.0359]
[1728100731066,1.75895633,142.15,142.12,7.0359]
[1728100731573,1.75895633,142.15,142.11,17.5913]
[1728100731747,1.75895633,142.15,142.11,24.6279]
[1728100734663,8.79375633,142.15,142.11,24.6279]
[1728100736456,30.812284,142.14,142.1,7.0372]
[1728100736659,30.812284,142.14,142.09,10.14081089]
[1728100736660,1.75915566,142.13,142.09,7.8781353]
[1728100737073,8.79515566,142.13,142.09,0.8404353]
[1728100737960,23.776884,142.12,142.09,0.8404353]
[1728100738166,1.75940289,142.11,142.09,0.8404353]
[1728100738877,30.813284,142.12,142.09,0.8404353]
[1728100739654,30.814084,142.1,142.09,0.8404353]
[1728100740758,32.57395963,142.1,142.09,0.8404353]
[1728100741459,30.814084,142.1,142.09,0.8404353]
[1728100742560,23.776884,142.1,142.09,0.8404353]
[1728100742766,21.6327,142.15,142.1,7.0371]
[1728100742954,21.6327,142.15,142.09,18.4339353]
[1728100743173,7.0359,142.13,142.09,25.4715353]
[1728100743578,1.75933529,142.12,142.09,18.4339353]
[1728100744158,8.79563529,142.12,142.09,18.4339353]
[1728100744353,8.79563529,142.12,142.09,0.8404353]
[1728100744678,7.0363,142.12,142.09,0.8404353]
[1728100745054,7.0368,142.11,142.09,0.8404353]
[1728100745382,30.814084,142.1,142.09,0.8404353]
[1728100746076,7.0368,142.11,142.09,0.8404353]
[1728100748868,1.75953146,142.1,142.09,0.8404353]
[1728100749177,7.0368,142.11,142.09,0.8404353]
[1728100749380,23.776884,142.11,142.09,0.8404353]
[1728100750165,1.75950644,142.1,142.09,0.8404353]
[1728100751380,30.813684,142.11,142.09,0.8404353]
[1728100751594,20.0,142.14,142.09,7.8779353]
[1728100751595,30.812784,142.13,142.09,7.8779353]
[1728100752572,1.75930404,142.12,142.09,7.8779353]
[1728100753159,21.6327,142.15,142.1,7.0371]
[1728100753384,28.6675,142.15,142.1,7.0371]
[1728100754470,1.75911964,142.14,142.1,7.0371]
[1728100755374,8.79441964,142.14,142.1,7.0371]
[1728100758267,8.79441964,142.14,142.09,17.17841089]
[1728100759188,8.79441964,142.14,142.09,7.8780353]
[1728100760691,7.0353,142.14,142.09,7.8780353]
[1728100760895,7.0353,142.14,142.1,30.0]
[1728100762588,23.776884,142.14,142.1,37.0369]
[1728100765097,30.812284,142.14,142.1,37.0369]
[1728100766490,32.57140755,142.14,142.1,37.0369]
[1728100766689,32.57140755,142.14,142.1,30.0]
[1728100766870,25.53600755,142.14,142.1,30.0]
[1728100767379,23.776884,142.14,142.1,30.0]
[1728100768092,7.0364,142.12,142.1,30.0]
[1728100769589,23.776884,142.14,142.1,30.0]
[1728100769814,28.6679,142.15,142.11,0.12549]
[1728100769976,28.6679,142.15,142.11,30.12549]
[1728100772583,28.6679,142.15,142.11,0.12549]
[1728100775784,28.6679,142.15,142.11,30.12549]
[1728100778800,1.75895173,142.14,142.11,30.12549]
[1728100778976,30.42685173,142.15,142.11,30.12549]
[1728100779995,28.6679,142.15,142.11,30.12549]
[1728100784392,1.7589528,142.14,142.11,30.12549]
[1728100785895,1.7589528,142.14,142.11,0.12549]
[1728100788000,21.6327,142.15,142.11,0.12549]
[1728100788208,7.0353,142.14,142.11,0.12549]
[1728100788887,7.0353,142.14,142.11,30.12549]
[1728100799331,1.75893766,142.13,142.11,30.0]
[1728100799498,23.776884,142.15,142.11,30.0]
[1728100799701,1.7591981,142.14,142.11,30.0]
[1728100801026,7.0359,142.13,142.11,30.0]
[1728100801225,7.0363,142.12,142.11,30.0]
[1728100801836,7.0359,142.13,142.11,30.0]
[1728100802206,8.79538391,142.12,142.11,30.0]
[1728100802415,7.0363,142.12,142.11,30.0]
[1728100802623,30.813184,142.12,142.11,30.0]
[1728100803823,7.0372,142.1,142.09,0.8404353]
[1728100804031,7.0372,142.1,142.09,30.8404353]
[1728100804714,7.0368,142.11,142.09,30.8404353]
[1728100806229,7.0368,142.11,142.09,0.8404353]
[1728100809335,7.0368,142.11,142.09,30.8404353]
[1728100811232,7.0364,142.12,142.09,30.8404353]
[1728100814732,7.0364,142.12,142.09,0.8404353]
[1728100816607,7.0372,142.1,142.09,0.8404353]
[1728100817323,50.814084,142.1,142.09,0.8404353]
[1728100829628,30.814084,142.1,142.09,0.8404353]
[1728100829821,50.814084,142.1,142.09,0.8404353]
[1728100837228,27.0372,142.1,142.09,0.8404353]
[1728100837438,20.0,142.1,142.09,0.8404353]
[1728100838011,4.12147955,142.14,142.09,0.8404353]
[1728100838238,7.0353,142.14,142.1,0.12549]
[1728100838431,7.0353,142.14,142.1,9.42586559]
[1728100838640,7.0353,142.14,142.1,16.46296559]
[1728100839864,7.0353,142.14,142.1,0.12549]
[1728100840537,7.0362,142.13,142.1,0.12549]
[1728100841211,7.0363,142.12,142.09,10.14081089]
[1728100842938,7.0358,142.13,142.09,10.14081089]
[1728100843617,7.0354,142.14,142.1,0.12549]
[1728100844934,7.0354,142.14,142.1,0.25098]
[1728100845134,7.0354,142.14,142.1,7.28818]
[1728100845316,7.00539,142.14,142.1,7.28818]
[1728100846453,20.0,142.16,142.11,7.0364]
[1728100846742,10.72377955,142.18,142.12,0.12549]
[1728100847119,10.72377955,142.18,142.12,24.75149]
[1728100847316,1.75874858,142.17,142.12,24.75149]
[1728100847730,4.12147955,142.18,142.12,24.75149]
[1728100847946,7.0339,142.17,142.12,24.75149]
[1728100848124,8.79256792,142.17,142.12,24.75149]
[1728100848650,7.0339,142.17,142.12,24.75149]
[1728100849149,8.79254648,142.17,142.12,54.75149]
[1728100849344,7.0339,142.17,142.12,54.75149]
[1728100851524,5.60276445,142.19,142.13,0.12549]
[1728100851840,21.70177955,142.21,142.14,7.0351]
[1728100851841,7.0333,142.18,142.14,7.0351]
[1728100852042,7.0328,142.19,142.16,0.12549]
[1728100852426,7.0328,142.19,142.15,0.12549]
[1728100852740,1.75850756,142.2,142.14,7.16069]
[1728100852948,7.0333,142.18,142.14,7.16069]
[1728100853769,7.0344,142.16,142.13,30.12549]
[1728100854046,7.0339,142.17,142.13,30.12549]
[1728100855850,7.0339,142.17,142.13,0.25098]
[1728100856235,1.75861972,142.16,142.11,14.0964]
[1728100856443,1.75861972,142.16,142.12,30.0]
[1728100856638,7.0353,142.14,142.12,30.0]
[1728100856840,7.0353,142.14,142.09,17.17841089]
[1728100857346,1.75861972,142.16,142.1,47.5925]
[1728100857549,7.0343,142.16,142.12,7.0361]
[1728100857720,7.0343,142.16,142.12,8.44312363]
[1728100858349,23.776884,142.2,142.13,0.12549]
[1728100858536,7.0339,142.17,142.13,0.12549]
[1728100860127,7.0339,142.17,142.12,0.12549]
[1728100860328,7.0339,142.17,142.12,7.16169]
[1728100863452,8.7934755,142.16,142.12,0.12549]
[1728100863833,7.0348,142.16,142.12,0.12549]
[1728100864031,23.776884,142.16,142.11,0.12549]
[1728100864235,7.0355,142.14,142.1,47.5925]
[1728100864758,7.0355,142.14,142.1,54.6297]
[1728100865753,7.0349,142.15,142.1,54.6297]
[1728100865930,7.0349,142.15,142.11,0.12549]